fUSD/lending_fUSD_20260405
["ID","MTS","AMOUNT","RATE_DAILY","PERIOD"]
[419842428,1775413636302,-300.0,0.00012063,2]
[419842429,1775413636322,-200.0,0.00012509,2]
[419842430,1775413636343,-2000.0,0.00012662,2]
[419842431,1775413636364,-1200.0,0.0001267,2]
[419842432,1775413636384,-9323.62736992,0.00012671,2]
[419842437,1775413831898,-175.5,9.964e-05,2]
[419842438,1775413831909,-1600.0,0.00012537,2]
[419842439,1775413831919,-150.0,0.00012671,2]
[419842440,1775413831930,-419.59447237,0.00012671,2]
[419842441,1775413831953,-1148.34815771,0.00012671,2]
[419842442,1775413831962,-600.0,0.00012676,2]
[419842443,1775413831972,-195.0,0.00012676,2]
[419842444,1775413831982,-3306.91,0.00012681,2]
[419842445,1775413831993,-10000.0,0.000127,2]
[419842446,1775413832004,-518.71,0.00012735,2]
[419842447,1775413832015,-1200.0,0.00012774,2]
[419842448,1775413832025,-195.0,0.00012775,2]
[419842449,1775413832039,-195.0,0.00012775,2]
[419842450,1775413832048,-195.0,0.00012775,2]
[419842451,1775413832058,-300.0,0.00012789,2]
[419842452,1775413832068,-1852.42,0.0001279,2]
[419842453,1775413832077,-250.0,0.00013,2]
[419842454,1775413832087,-192.03,0.00013066,2]
[419842455,1775413832097,-504.0,0.00013111,2]
[419842456,1775413832106,-157.0,0.00013282,3]
[419842457,1775413832117,-159.0,0.00013282,3]
[419842458,1775413832128,-3240.0,0.00013425,2]
[419842459,1775413832137,-1488.76971524,0.00013434,2]
[419842461,1775413832146,-518.71,0.00013442,2]
[419842463,1775413832155,-150.0,0.00013495,2]
[419842465,1775413832164,-145.28037817,0.00013496,2]
[419842467,1775413832177,-354.71962183,0.00013496,2]
[419842468,1775413832187,-500.0,0.00013496,2]
[419842469,1775413832197,-409.2649162,0.00013496,2]
[419842470,1775413832208,-38.14887454,0.00013496,2]
[419842471,1775413832218,-316.66472574,0.00013496,2]
[419842472,1775413832227,-65.18639972,0.00013496,2]
[419842473,1775413832239,-434.81360028,0.00013496,2]
[419842474,1775413832249,-500.0,0.00013496,2]
[419842476,1775413832258,-487.15056601,0.00013496,2]
[419842478,1775413832269,-12.84943399,0.00013496,2]
[419842479,1775413832278,-170.21193868,0.00013496,2]
[419842480,1775413832289,-500.0,0.00013496,2]
[419842481,1775413832300,-169.71195622,0.00013496,2]
[419842482,1775413832309,-500.0,0.00013496,2]
[419842483,1775413832318,-500.0,0.00013496,2]
[419842484,1775413832329,-399.16107372,0.00013496,2]
[419842485,1775413832338,-166.22790867,0.00013496,2]
[419842486,1775413832349,-2500.0,0.00013497,2]
[419842487,1775413832359,-2475.69086009,0.00013497,2]
[419842488,1775413832372,-596.61311656,0.00013497,2]
[419842489,1775413832434,-80085.20518239,0.00013497,2]
[419842490,1775413832446,-3904.47098206,0.00013497,2]
[419842491,1775413832459,-687.0,0.00013497,2]
[419842492,1775413832471,-1109.24731293,0.00013497,2]
[419842493,1775413832482,-8045.54526625,0.00013497,2]
[419842494,1775413832497,-3383.42896817,0.00013497,2]
[419842495,1775413832564,-2746.567596,0.00013497,2]
[419842496,1775413832575,-4585.70370737,0.00013497,2]
[419842497,1775413832587,-36151.36500132,0.00013497,2]
[419842498,1775413832599,-12385.73470098,0.00013497,2]
[419842501,1775413838015,-431.92357442,0.00013497,2]
[419842502,1775413838027,-2783.68420477,0.00013497,2]
[419842503,1775413838072,-67499.99999997,0.00013497,2]
[419842504,1775413838083,-311.07829332,0.00013497,2]
[419842505,1775413838095,-839.22440905,0.00013497,2]
[419842506,1775413838106,-9561.50740717,0.00013497,2]
[419842507,1775413838143,-10915.79728157,0.00013497,2]
[419842508,1775413838155,-6275.55825757,0.00013497,2]
[419842509,1775413838166,-966.64371,0.00013497,2]
[419842510,1775413838193,-339.88265974,0.00013497,2]
[419842511,1775413838250,-467.4334257,0.00013497,2]
[419842512,1775413838309,-4043.8467716,0.00013497,2]
[419842513,1775413838320,-330.95,0.00013497,2]
[419842582,1775413840270,-550.0,0.00013497,2]
[419842583,1775413840637,-330.99140423,0.00013497,2]
[419842584,1775413840722,-197069.68147288,0.00013497,2]
[419842585,1775413840988,-1000.0,0.00013497,2]
[419842592,1775413846040,-910.31153537,0.00013434,2]
[419842593,1775413846050,-107784.68846213,0.00013497,2]
[419842595,1775413846213,-41222.11630807,0.00013497,2]
[419842596,1775413846225,-764.132,0.00013497,2]
[419842597,1775413846377,-5326.51044459,0.00013497,2]
[419842598,1775413846399,-279.026,0.00013497,2]
[419842599,1775413846414,-291431.90801408,0.00013497,2]
[419842600,1775413846425,-604.0,0.00013497,2]
[419842601,1775413846436,-13795.41994532,0.00013497,2]
[419842602,1775413846447,-5428.27742201,0.00013497,2]
[419842611,1775413945257,402.31,0.00016,120]
[419842612,1775414135624,362.08,0.00016,120]
[419842613,1775414327050,325.87,0.00016,120]
[419842614,1775414518393,293.28,0.00016,120]
[419842615,1775414709333,263.95,0.00016,120]
[419842619,1775414826941,-1729.17214196,0.00011507,2]
[419842620,1775414899725,237.56,0.00016,120]
[419842621,1775415032113,-607.0457332,0.000115,2]
[419842622,1775415032123,-1548.84376371,0.00011507,2]
[419842623,1775415032134,-579.29409433,0.00011507,2]
[419842624,1775415032144,-195.0,0.00011772,2]
[419842625,1775415032154,-240.75289303,0.00012566,2]
[419842626,1775415032170,-245.89710697,0.00012566,2]
[419842627,1775415032181,-500.0,0.00012566,2]
[419842628,1775415032192,-433.68072204,0.0001263,2]
[419842629,1775415032224,-66.31927796,0.0001263,2]
[419842630,1775415032234,-300.0,0.00012657,2]
[419842631,1775415032243,-1200.0,0.00012657,2]
[419842632,1775415032253,-195.0,0.00012658,2]
[419842633,1775415032262,-600.0,0.00012658,2]
[419842634,1775415032272,-195.0,0.00012658,2]
[419842635,1775415032282,-195.0,0.00012658,2]
[419842636,1775415032291,-195.0,0.00012658,2]
[419842637,1775415032301,-4425.67,0.00012695,2]
[419842638,1775415032310,-500.0,0.00012809,2]
[419842639,1775415032320,-232.37,0.00012809,2]
[419842640,1775415032330,-500.0,0.00012811,2]
[419842641,1775415032339,-270.77,0.00012811,2]
[419842642,1775415032349,-159.13,0.00012811,2]
[419842643,1775415032359,-500.0,0.00012822,2]
[419842644,1775415032369,-464.74,0.00012822,2]
[419842645,1775415032379,-500.0,0.00012823,2]
[419842646,1775415032389,-318.27,0.00012823,2]
[419842647,1775415032399,-500.0,0.00012824,2]
[419842648,1775415032408,-500.0,0.00012835,2]
[419842649,1775415032418,-232.37,0.00012835,2]
[419842650,1775415032428,-500.0,0.00012836,2]
[419842651,1775415032438,-159.13,0.00012836,2]
[419842652,1775415032447,-500.0,0.00012837,2]
[419842653,1775415032456,-270.77,0.00012837,2]
[419842654,1775415032466,-367.05,0.00012869,2]
[419842655,1775415032475,-194.78,0.00012877,2]
[419842656,1775415032485,-250.0,0.00013,2]
[419842657,1775415032494,-150.0,0.00013053,2]
[419842658,1775415032504,-1000.0,0.00013084,2]
[419842659,1775415032513,-257.60601427,0.00013085,7]
[419842660,1775415032522,-189.5773225,0.00013086,7]
[419842661,1775415032532,-504.0,0.00013111,2]
[419842662,1775415032541,-150.0,0.00013192,2]
[419842664,1775415032550,-23859.29240704,0.00013195,2]
[419842666,1775415032560,-8723.40172689,0.00013195,2]
[419842668,1775415032572,-994.88176241,0.00013195,2]
[419842671,1775415032583,-2005.77801783,0.00013195,2]
[419842673,1775415032592,-150.0,0.00013238,2]
[419842675,1775415032602,-500.0,0.0001326,2]
[419842677,1775415032611,-500.0,0.00013273,2]
[419842679,1775415032620,-411.26042191,0.00013284,2]
[419842681,1775415032629,-150.0,0.00013288,2]
[419842683,1775415032638,-151.0,0.00013289,2]
[419842685,1775415032647,-500.0,0.00013289,2]
[419842687,1775415032656,-151.0,0.00013289,2]
[419842688,1775415032665,-151.0,0.00013289,2]
[419842690,1775415032675,-151.0,0.00013289,2]
[419842692,1775415032685,-151.0,0.00013289,2]
[419842694,1775415032695,-151.0,0.00013289,2]
[419842696,1775415032704,-151.0,0.00013289,2]
[419842698,1775415032714,-151.0,0.00013289,2]
[419842700,1775415032723,-151.0,0.00013289,2]
[419842703,1775415032733,-151.0,0.00013289,2]
[419842705,1775415032743,-151.0,0.00013289,2]
[419842706,1775415032753,-151.0,0.00013289,2]
[419842708,1775415032762,-200.0,0.00013289,2]
[419842710,1775415032771,-500.0,0.00013293,2]
[419842712,1775415032780,-88.20426283,0.00013293,2]
[419842716,1775415032837,-133.46104519,0.00013293,2]
[419842717,1775415032846,-313.18965352,0.00013293,2]
[419842718,1775415032855,-500.0,0.00013293,2]
[419842719,1775415032865,-500.0,0.00013293,2]
[419842720,1775415032874,-168.79836936,0.00013293,2]
[419842721,1775415032883,-500.0,0.00013293,2]
[419842722,1775415032893,-500.0,0.00013293,2]
[419842723,1775415032902,-529.41275161,0.00013293,2]
[419842724,1775415032911,-338.56055774,0.00013293,2]
[419842725,1775415032921,-353.57762258,0.00013293,2]
[419842726,1775415032932,-146.42237742,0.00013293,2]
[419842727,1775415032941,-273.0628458,0.00013293,2]
[419842728,1775415032951,-200.09793193,0.00013293,2]
[419842729,1775415032960,-500.0,0.00013293,2]
[419842730,1775415032969,-500.0,0.00013293,2]
[419842731,1775415032978,-288.77621957,0.00013293,2]
[419842732,1775415032994,-211.22378043,0.00013293,2]
[419842733,1775415033003,-500.0,0.00013293,2]
[419842734,1775415033013,-554.53010085,0.00013293,2]
[419842735,1775415033022,-500.0,0.00013293,2]
[419842736,1775415033031,-500.0,0.00013293,2]
[419842737,1775415033041,-500.0,0.00013293,2]
[419842738,1775415033051,-257.7766621,0.00013293,2]
[419842739,1775415033060,-24853.60263021,0.00013294,2]
[419842753,1775415038363,-732.3200417,0.00013294,2]
[419842754,1775415038497,-1474414.07732809,0.00013294,2]
[419842755,1775415038509,-2500.0,0.00013295,2]
[419842756,1775415038518,-30786.93330672,0.00013297,2]
[419842757,1775415038527,-150.0,0.00013331,2]
[419842758,1775415038537,-207871.07899064,0.00013395,2]
[419842759,1775415038547,-1000.0,0.00013397,2]
[419842761,1775415038556,-68110.6171,0.00013397,2]
[419842762,1775415038567,-1399.77259345,0.00013397,2]
[419842763,1775415038577,-150.0,0.00013423,2]
[419842764,1775415038587,-150.01,0.0001347,2]
[419842765,1775415038597,-500.0,0.00013473,2]
[419842767,1775415038606,-1657.790768,0.00013493,2]
[419842769,1775415038615,-249.778803,0.00013494,2]
[419842770,1775415038624,-23859.29240695,0.00013496,2]
[419842771,1775415038635,-66424.2186701,0.00013497,2]
[419842772,1775415038644,-257964.748565,0.00013497,2]
[419842773,1775415038654,-35947.8676858,0.00013497,2]
[419842774,1775415038663,-4490.4558224,0.00013497,2]
[419842775,1775415038672,-23196.3783456,0.00013497,2]
[419842776,1775415038681,-13471.3674672,0.00013497,2]
[419842777,1775415038691,-500.0,0.00013497,2]
[419842778,1775415038700,-3000.0,0.00013534,2]
[419842779,1775415038709,-2000.0,0.00013534,2]
[419842781,1775415038719,-11724.0615071,0.00013581,2]
[419842783,1775415038728,-30786.93330671,0.00013586,2]
[419842785,1775415038738,-239.787651,0.00013594,2]
[419842787,1775415038747,-249.779244,0.00013594,2]
[419842789,1775415038757,-150.0,0.000136,2]
[419842791,1775415038766,-1000.0,0.00013607,2]
[419842793,1775415038775,-596.0,0.00013695,2]
[419842795,1775415038784,-500.0,0.00013695,2]
[419842797,1775415038794,-728.0,0.00013695,2]
[419842799,1775415038803,-700.97,0.00013698,2]
[419842801,1775415038812,-700.97,0.00013698,2]
[419842803,1775415038821,-700.97,0.00013698,2]
[419842805,1775415038830,-700.97,0.00013698,2]
[419842807,1775415038838,-700.97,0.00013698,2]
[419842809,1775415038847,-700.97,0.00013698,2]
[419842811,1775415038856,-500.0,0.00013698,2]
[419842813,1775415038866,-500.0,0.00013698,2]
[419842815,1775415038875,-500.0,0.00013698,2]
[419842817,1775415038884,-500.0,0.00013698,2]
[419842819,1775415038893,-500.0,0.00013698,2]
[419842821,1775415038902,-500.0,0.00013698,2]
[419842823,1775415038911,-500.0,0.00013698,2]
[419842825,1775415038920,-500.0,0.00013698,2]
[419842827,1775415038930,-500.0,0.00013698,2]
[419842829,1775415038938,-500.0,0.00013698,2]
[419842831,1775415038948,-500.0,0.00013698,2]
[419842833,1775415038957,-500.0,0.00013698,2]
[419842835,1775415038965,-500.0,0.00013698,2]
[419842837,1775415038974,-500.0,0.00013698,2]
[419842839,1775415038983,-577.45498934,0.00013698,2]
[419842841,1775415038992,-385.93623428,0.00013698,2]
[419842843,1775415039002,-500.0,0.00013698,2]
[419842845,1775415039011,-500.0,0.00013698,2]
[419842847,1775415039020,-500.0,0.00013698,2]
[419842849,1775415039029,-500.0,0.00013698,2]
[419842851,1775415039038,-500.0,0.00013698,2]
[419842853,1775415039047,-500.0,0.00013698,2]
[419842855,1775415039056,-500.0,0.00013698,2]
[419842857,1775415039065,-500.0,0.00013698,2]
[419842859,1775415039074,-500.0,0.00013698,2]
[419842861,1775415039083,-500.0,0.00013698,2]
[419842863,1775415039092,-500.0,0.00013698,2]
[419842864,1775415039101,-500.0,0.00013698,2]
[419842865,1775415039110,-500.0,0.00013698,2]
[419842866,1775415039119,-500.0,0.00013698,2]
[419842867,1775415039129,-500.0,0.00013698,2]
[419842868,1775415039138,-500.0,0.00013698,2]
[419842869,1775415039148,-500.0,0.00013698,2]
[419842870,1775415039158,-500.0,0.00013698,2]
[419842871,1775415039167,-500.0,0.00013698,2]
[419842872,1775415039176,-500.0,0.00013698,2]
[419842873,1775415039185,-500.0,0.00013698,2]
[419842874,1775415039195,-500.0,0.00013698,2]
[419842875,1775415039204,-500.0,0.00013698,2]
[419842876,1775415039213,-595.52,0.00013698,2]
[419842877,1775415039222,-595.52,0.00013698,2]
[419842878,1775415039231,-595.52,0.00013698,2]
[419842879,1775415039241,-595.52,0.00013698,2]
[419842880,1775415039251,-595.52,0.00013698,2]
[419842881,1775415039260,-595.52,0.00013698,2]
[419842882,1775415039270,-551.83212521,0.00013698,2]
[419842883,1775415039279,-500.0,0.00013698,2]
[419842884,1775415039288,-500.0,0.00013698,2]
[419842885,1775415039297,-500.0,0.00013698,2]
[419842886,1775415039307,-500.0,0.00013698,2]
[419842887,1775415039317,-500.0,0.00013698,2]
[419842888,1775415039328,-500.0,0.00013698,2]
[419842889,1775415039339,-500.0,0.00013698,2]
[419842890,1775415039349,-500.0,0.00013698,2]
[419842891,1775415039358,-500.0,0.00013698,2]
[419842892,1775415039368,-500.0,0.00013698,2]
[419842893,1775415039377,-500.0,0.00013698,2]
[419842894,1775415039387,-183.58723642,0.00013698,2]
[419842895,1775415039397,-1271.54,0.00013698,2]
[419842896,1775415039407,-1271.54,0.00013698,2]
[419842897,1775415039417,-1271.54,0.00013698,2]
[419842898,1775415039426,-1271.54,0.00013698,2]
[419842899,1775415039435,-1271.54,0.00013698,2]
[419842900,1775415039444,-1271.54,0.00013698,2]
[419842901,1775415039454,-500.0,0.00013698,2]
[419842902,1775415039463,-288.67918003,0.00013698,2]
[419842903,1775415039472,-500.0,0.00013698,2]
[419842904,1775415039483,-500.0,0.00013698,2]
[419842905,1775415039492,-500.0,0.00013698,2]
[419842906,1775415039501,-500.0,0.00013698,2]
[419842907,1775415039511,-500.0,0.00013698,2]
[419842908,1775415039520,-500.0,0.00013698,2]
[419842909,1775415039529,-500.0,0.00013698,2]
[419842910,1775415039538,-500.0,0.00013698,2]
[419842911,1775415039547,-500.0,0.00013698,2]
[419842912,1775415039557,-500.0,0.00013698,2]
[419842913,1775415039566,-500.0,0.00013698,2]
[419842914,1775415039575,-500.0,0.00013698,2]
[419842915,1775415039584,-500.0,0.00013698,2]
[419842916,1775415039593,-500.0,0.00013698,2]
[419842917,1775415039603,-500.0,0.00013698,2]
[419842918,1775415039612,-500.0,0.00013698,2]
[419842919,1775415039621,-500.0,0.00013698,2]
[419842920,1775415039631,-500.0,0.00013698,2]
[419842921,1775415039640,-500.0,0.00013698,2]
[419842922,1775415039650,-500.0,0.00013698,2]
[419842923,1775415039659,-500.0,0.00013698,2]
[419842924,1775415039669,-481.06713155,0.00013698,2]
[419842925,1775415039679,-500.0,0.00013698,2]
[419842926,1775415039690,-500.0,0.00013698,2]
[419842927,1775415039699,-500.0,0.00013698,2]
[419842928,1775415039709,-500.0,0.00013698,2]
[419842929,1775415039719,-500.0,0.00013698,2]
[419842930,1775415039728,-500.0,0.00013698,2]
[419842931,1775415039737,-500.0,0.00013698,2]
[419842932,1775415039747,-500.0,0.00013698,2]
[419842933,1775415039756,-500.0,0.00013698,2]
[419842934,1775415039766,-500.0,0.00013698,2]
[419842935,1775415039776,-500.0,0.00013698,2]
[419842936,1775415039786,-500.0,0.00013698,2]
[419842937,1775415039796,-500.0,0.00013698,2]
[419842938,1775415039807,-500.0,0.00013698,2]
[419842939,1775415039817,-500.0,0.00013698,2]
[419842940,1775415039826,-500.0,0.00013698,2]
[419842941,1775415039835,-500.0,0.00013698,2]
[419842942,1775415039844,-500.0,0.00013698,2]
[419842943,1775415039854,-500.0,0.00013698,2]
[419842944,1775415039863,-500.0,0.00013698,2]
[419842945,1775415039873,-500.0,0.00013698,2]
[419842946,1775415039883,-500.0,0.00013698,2]
[419842947,1775415039892,-500.0,0.00013698,2]
[419842948,1775415039901,-500.0,0.00013698,2]
[419842949,1775415039910,-500.0,0.00013698,2]
[419842950,1775415039919,-500.0,0.00013698,2]
[419842951,1775415039928,-500.0,0.00013698,2]
[419842952,1775415039937,-500.0,0.00013698,2]
[419842953,1775415039947,-500.0,0.00013698,2]
[419842954,1775415039956,-500.0,0.00013698,2]
[419842955,1775415039965,-500.0,0.00013698,2]
[419842956,1775415039974,-500.0,0.00013698,2]
[419842957,1775415039983,-500.0,0.00013698,2]
[419842958,1775415039992,-500.0,0.00013698,2]
[419842959,1775415040002,-500.0,0.00013698,2]
[419842960,1775415040011,-500.0,0.00013698,2]
[419842961,1775415040020,-500.0,0.00013698,2]
[419842962,1775415040029,-500.0,0.00013698,2]
[419842963,1775415040038,-500.0,0.00013698,2]
[419842964,1775415040047,-500.0,0.00013698,2]
[419842965,1775415040056,-500.0,0.00013698,2]
[419842966,1775415040066,-500.0,0.00013698,2]
[419842967,1775415040075,-500.0,0.00013698,2]
[419842968,1775415040085,-500.0,0.00013698,2]
[419842969,1775415040094,-500.0,0.00013698,2]
[419842970,1775415040103,-573.05086874,0.00013698,2]
[419842971,1775415040112,-500.0,0.00013698,2]
[419842972,1775415040121,-500.0,0.00013698,2]
[419842973,1775415040131,-500.0,0.00013698,2]
[419842974,1775415040140,-500.0,0.00013698,2]
[419842976,1775415040149,-500.0,0.00013698,2]
[419842978,1775415040158,-500.0,0.00013698,2]
[419842980,1775415040167,-500.0,0.00013698,2]
[419842982,1775415040176,-500.0,0.00013698,2]
[419842983,1775415040185,-500.0,0.00013698,2]
[419842984,1775415040194,-500.0,0.00013698,2]
[419842985,1775415040203,-500.0,0.00013698,2]
[419842986,1775415040213,-601.82,0.00013698,2]
[419842987,1775415040222,-250.43,0.00013698,2]
[419842988,1775415040231,-500.0,0.00013698,2]
[419842989,1775415040240,-500.0,0.00013698,2]
[419842990,1775415040249,-500.0,0.00013698,2]
[419842991,1775415040258,-500.0,0.00013698,2]
[419842992,1775415040268,-500.0,0.00013698,2]
[419842993,1775415040277,-500.0,0.00013698,2]
[419842994,1775415040286,-500.0,0.00013698,2]
[419842995,1775415040295,-500.0,0.00013698,2]
[419842996,1775415040304,-500.0,0.00013698,2]
[419842997,1775415040313,-500.0,0.00013698,2]
[419842998,1775415040322,-500.0,0.00013698,2]
[419842999,1775415040331,-500.0,0.00013698,2]
[419843000,1775415040342,-500.0,0.00013698,2]
[419843001,1775415040352,-500.0,0.00013698,2]
[419843002,1775415040361,-500.0,0.00013698,2]
[419843003,1775415040370,-500.0,0.00013698,2]
[419843004,1775415040380,-500.0,0.00013698,2]
[419843005,1775415040389,-500.0,0.00013698,2]
[419843006,1775415040398,-500.0,0.00013698,2]
[419843007,1775415040407,-500.0,0.00013698,2]
[419843008,1775415040416,-643.16,0.00013698,2]
[419843009,1775415040425,-500.0,0.00013698,2]
[419843010,1775415040434,-500.0,0.00013698,2]
[419843011,1775415040443,-500.0,0.00013698,2]
[419843012,1775415040453,-500.0,0.00013698,2]
[419843013,1775415040462,-500.0,0.00013698,2]
[419843014,1775415040471,-500.0,0.00013698,2]
[419843015,1775415040480,-428.00397972,0.00013698,2]
[419843016,1775415040489,-500.0,0.00013698,2]
[419843017,1775415040498,-500.0,0.00013698,2]
[419843018,1775415040507,-500.0,0.00013698,2]
[419843019,1775415040516,-500.0,0.00013698,2]
[419843020,1775415040526,-500.0,0.00013698,2]
[419843021,1775415040535,-500.0,0.00013698,2]
[419843022,1775415040544,-500.0,0.00013698,2]
[419843023,1775415040553,-500.0,0.00013698,2]
[419843024,1775415040562,-390.77484076,0.00013698,2]
[419843025,1775415040572,-150.0,0.00013699,2]
[419843026,1775415040581,-150.0,0.00013699,2]
[419843027,1775415040591,-150.0,0.00013699,2]
[419843028,1775415040600,-150.0,0.00013699,2]
[419843029,1775415040610,-150.0,0.00013699,2]
[419843030,1775415040619,-150.0,0.00013699,2]
[419843031,1775415040628,-150.0,0.00013699,2]
[419843032,1775415040638,-717.06,0.00013699,2]
[419843033,1775415040647,-5242.45,0.00013699,2]
[419843034,1775415040656,-200.0,0.00013699,2]
[419843035,1775415040665,-2068.57,0.00013699,2]
[419843036,1775415040674,-221.38,0.00013699,2]
[419843037,1775415040683,-439.18,0.00013699,2]
[419843038,1775415040692,-365.99,0.00013699,2]
[419843039,1775415040702,-304.99,0.00013699,2]
[419843040,1775415040711,-254.16,0.00013699,2]
[419843041,1775415040720,-211.8,0.00013699,2]
[419843042,1775415040729,-176.5,0.00013699,2]
[419843043,1775415040738,-882.5,0.00013699,2]
[419843044,1775415040747,-500.0,0.00013699,2]
[419843045,1775415040756,-500.0,0.00013699,2]
[419843046,1775415040765,-500.0,0.00013699,2]
[419843047,1775415040775,-500.0,0.00013699,2]
[419843048,1775415041138,-500.0,0.00013699,2]
[419843049,1775415041157,-500.0,0.00013699,2]
[419843050,1775415041166,-161.91170216,0.00013699,2]
[419843051,1775415041177,-339.79133416,0.00013699,2]
[419843052,1775415041190,-598.99606082,0.00013699,2]
[419843053,1775415041200,-500.0,0.00013699,2]
[419843054,1775415041211,-500.0,0.00013699,2]
[419843055,1775415041222,-500.0,0.00013699,2]
[419843056,1775415041233,-403.93256284,0.00013699,2]
[419843057,1775415041245,-500.13152132,0.00013699,2]
[419843058,1775415041255,-500.0,0.00013699,2]
[419843059,1775415041265,-164.79711181,0.00013699,2]
[419843060,1775415041277,-500.0,0.00013699,2]
[419843061,1775415041287,-500.0,0.00013699,2]
[419843062,1775415041297,-163.60261744,0.00013699,2]
[419843063,1775415041307,-500.0,0.00013699,2]
[419843064,1775415041317,-500.0,0.00013699,2]
[419843065,1775415041327,-500.0,0.00013699,2]
[419843066,1775415041336,-500.0,0.00013699,2]
[419843067,1775415041347,-211.04857142,0.00013699,2]
[419843068,1775415041356,-500.0,0.00013699,2]
[419843069,1775415041365,-500.0,0.00013699,2]
[419843070,1775415041375,-385.86149772,0.00013699,2]
[419843071,1775415041384,-500.0,0.00013699,2]
[419843072,1775415041394,-160.7467095,0.00013699,2]
[419843073,1775415041404,-168.69935806,0.00013699,2]
[419843075,1775415041413,-500.0,0.00013699,2]
[419843077,1775415041422,-500.0,0.00013699,2]
[419843078,1775415041431,-500.0,0.00013699,2]
[419843080,1775415041441,-519.03182682,0.00013699,2]
[419843081,1775415041450,-500.0,0.00013699,2]
[419843082,1775415041460,-515.7358709,0.00013699,2]
[419843083,1775415041469,-312.74353669,0.00013699,2]
[419843084,1775415041479,-500.0,0.00013699,2]
[419843085,1775415041488,-500.0,0.00013699,2]
[419843087,1775415041499,-500.0,0.00013699,2]
[419843089,1775415041508,-500.50066882,0.00013699,2]
[419843091,1775415041518,-518.73332026,0.00013699,2]
[419843092,1775415041528,-202.64993829,0.00013699,2]
[419843093,1775415041537,-162.72924009,0.00013699,2]
[419843094,1775415041546,-569.20510167,0.00013699,2]
[419843095,1775415041555,-500.0,0.00013699,2]
[419843096,1775415041565,-500.0,0.00013699,2]
[419843097,1775415041580,-607.20051974,0.00013699,2]
[419843098,1775415041590,-500.0,0.00013699,2]
[419843099,1775415041600,-500.0,0.00013699,2]
[419843100,1775415041610,-500.0,0.00013699,2]
[419843101,1775415041620,-210.98153295,0.00013699,2]
[419843102,1775415041630,-500.0,0.00013699,2]
[419843103,1775415041640,-500.0,0.00013699,2]
[419843104,1775415041650,-500.0,0.00013699,2]
[419843105,1775415041660,-500.0,0.00013699,2]
[419843106,1775415041670,-152.37,0.00013699,2]
[419843107,1775415041680,-500.0,0.00013699,2]
[419843108,1775415041690,-633.93373005,0.00013699,2]
[419843109,1775415041700,-162.49,0.000137,2]
[419843110,1775415041711,-4138.57,0.000137,2]
[419843111,1775415041721,-4138.57,0.000137,2]
[419843112,1775415041731,-4138.57,0.000137,2]
[419843113,1775415041740,-4138.57,0.000137,2]
[419843114,1775415041751,-4138.57,0.000137,2]
[419843115,1775415041761,-23859.29240695,0.00013796,2]
[419843116,1775415041771,-500.0,0.00013799,2]
[419843117,1775415041780,-500.0,0.00013799,2]
[419843118,1775415041790,-500.0,0.00013799,2]
[419843119,1775415041800,-500.0,0.00013799,2]
[419843120,1775415041810,-500.0,0.00013799,2]
[419843121,1775415041821,-500.0,0.00013799,2]